[Event "46th Barbera del Valles Open-A 2024"]
[Site "Barbera del Valles"]
[Date "2024.07.06"]
[Round "3.1"]
[White "Utsab Chatterjee"]
[Black "Cuartas, Jaime Alexander"]
[Result "0-1"]
[ECO "C79"]
[WhiteElo "2287"]
[BlackElo "2519"]
[Annotator "TA"]
[PlyCount "110"]
[EventDate "2024.06.25"]
[EventType "swiss"]
[EventCountry "ESP"]
[SourceTitle "playchess.com"]
[Source "ChessBase"]
[SourceQuality "1"]
[TimeControl "5400+30"]

{[%evp 17,110,46,38,17,19,9,20,0,0,0,2,-50,-12,-13,-31,-18,0,-61,-50,-73,0,0,0,0,0,0,0,-10,-10,-7,-2,-2,-5,-6,-3,-10,-8,-8,-11,-5,-7,-125,-122,-133,-132,-129,-107,-177,-183,-188,-187,-182,-173,-176,-175,-152,-103,-185,-206,-183,-139,-135,-50,-97,-47,-48,-51,-63,-8,-79,-37,-197,-197,-176,-8,-8,-8,-8,-8,-8,-8,-29971,-29972,-29971,-29974,-29972,-29975,-29975,-29976,-29975,-29977,-29976,-29976,-29974,-29974]} 1. e4 {[%emt 0:00:26]} e5 {[%emt 0:00:07]} 2. Nf3 {[%emt 0:00:33]} Nc6 {[%emt 0:00:04]} 3. Bb5 {[%emt 0:00:11]} a6 {[%emt 0:00:05]} 4. Ba4 {[%emt 0:00:06]} Nf6 {[%emt 0:00:04]} 5. O-O {[%emt 0:00:10]} d6 {[%emt 0:01:04]} 6. Re1 {[%emt 0:02:55]} Bd7 {[%emt 0:00:09]} 7. c3 {[%emt 0:00:23]} g6 {[%emt 0:02:36]} 8. d4 {[%emt 0:00:33]} b5 {[%emt 0:01:01]} 9. Bb3 {[%emt 0:03:11]} Bg7 {[%emt 0:00:07]} 10. Nbd2 {[%emt 0:00:06]} O-O {[%emt 0:00:08]} 11. Nf1 {[%emt 0:00:26]} Bg4 {[%emt 0:00:33]} 12. Be3 {[%emt 0:00:13] The position is equal.} exd4 {[%emt 0:03:10]} (12... Nxe4 $2 13. Bd5 Na5 14. dxe5 $18 (14. Bxe4 d5 $18)) 13. cxd4 {[%emt 0:00:08]} Na5 {[%emt 0:02:01][%cal Oa5b3]} (13... Nxe4 $2 14. Bd5 $18) 14. Bc2 {[%emt 0:00:17]} (14. h3 $11 Bxf3 15. Qxf3) 14... Nc4 {[%emt 0:00:09]} 15. b3 {[%emt 0:08:43]} Nxe3 {[%emt 0:01:00]} 16. Nxe3 {[%emt 0:00:01]} Bc8 {[%emt 0:01:40]} 17. Rc1 {[%emt 0:01:57]} (17. e5 $1 $11 Nd7 18. Be4) 17... Bb7 $15 {[%emt 0:00:38]} 18. e5 {[%emt 0:04:22]} Nd5 {[%emt 0:05:03]} (18... Nd7 $17 {[%cal Rd6e5]} 19. exd6 cxd6) 19. Nxd5 $11 {[%emt 0:01:57]} Bxd5 {[%emt 0:00:05]} 20. Be4 {[%emt 0:00:09]} Bxe4 {[%emt 0:02:43]} 21. Rxe4 {[%emt 0:00:02]} dxe5 {[%emt 0:00:47]} 22. dxe5 {[%emt 0:05:50]} Qxd1+ {[%emt 0:00:34]} 23. Rxd1 {[%emt 0:00:02]} c5 {[%emt 0:01:33]} 24. Kf1 {[%emt 0:01:12]} Rfd8 {[%emt 0:03:04]} 25. Ree1 {[%emt 0:08:14]} Kf8 {[%emt 0:06:10]} 26. Rxd8+ {[%emt 0:05:08]} Rxd8 {[%emt 0:00:13][%mdl 4096] Endgame. KRB-KRN} 27. Ng5 {[%emt 0:00:23][%cal Oe5e6]} Ke7 {[%emt 0:05:30]} 28. f4 {[%emt 0:02:30][%cal Og2g3]} Bh6 {[%emt 0:00:23] ...Bxg5 is the strong threat.} 29. Ne4 {[%emt 0:07:07]} (29. Nh3 $1 $11 {keeps the balance.}) 29... Bxf4 $17 {[%emt 0:01:19]} 30. Nxc5 {[%emt 0:00:05]} Bxh2 {[%emt 0:01:37]} 31. Nxa6 {[%emt 0:00:15]} Bg3 {[%emt 0:16:37]} 32. Re3 {[%emt 0:10:19]} (32. Re4 $17) 32... Rd1+ $19 {[%emt 0:02:16]} 33. Ke2 {[%emt 0:00:01]} Re1+ {[%emt 0:00:06]} 34. Kf3 {[%emt 0:00:04]} Rxe3+ {[%emt 0:00:12]} 35. Kxe3 {[%emt 0:00:01]} Bxe5 {[%emt 0:00:07] KB-KN} 36. Nb4 {[%emt 0:01:07]} Bd6 {[%emt 0:03:12]} (36... Ke6 $142 {Threatens to win with ...Bd6.} 37. a4 bxa4 38. bxa4 h5) 37. Nd5+ {[%emt 0:01:06]} (37. Nc2 $17 {is the only way for White.}) 37... Ke6 {[%emt 0:00:15]} 38. Kd4 {[%emt 0:00:08]} h5 {[%emt 0:10:57]} 39. a4 {[%emt 0:00:17]} bxa4 {[%emt 0:00:04]} (39... h4 $1 $17 40. axb5 g5) 40. bxa4 $15 {[%emt 0:00:02]} Kd7 {[%emt 0:01:14]} ({Black should try} 40... Bb8 $17 41. a5 h4) 41. Nb6+ {[%emt 0:04:00]} Kc6 {[%emt 0:01:21]} 42. Nc4 {[%emt 0:00:06]} h4 {[%emt 0:02:01]} (42... Bc7 $15) 43. Na5+ {[%emt 0:01:49]} (43. a5 $11) 43... Kd7 {[%emt 0:01:19] ...g5 would now be deadly.} 44. Kd5 $2 {[%emt 0:00:06]} (44. Nb3 $15) 44... g5 $1 $19 {[%emt 0:03:03] And now ...g4 would win.} 45. Nc4 {[%emt 0:01:24]} Bf4 {[%emt 0:00:08]} ({Better is} 45... Bc7 $1 $19 46. Ne3 Ke7) 46. a5 $11 {[%emt 0:05:07]} f5 {[%emt 0:09:47]} (46... Kc7 $5 47. Ke4 $8 Kb7 $11) 47. Nb6+ {[%emt 0:00:52]} Kd8 {[%emt 0:04:25]} 48. a6 {[%emt 0:01:50] Threatening mate with a7.} Bb8 {[%emt 0:00:07] ( -> ...g4)} 49. Kc6 $2 {[%emt 0:00:31][%mdl 8192]} (49. Nc4 $11) 49... g4 $1 {[%emt 0:00:01] Black mates.} 50. Kb7 {[%emt 0:00:10] [#]} h3 $1 {[%emt 0:00:04]} 51. gxh3 {[%emt 0:01:43] [#]} g3 $1 {[%emt 0:01:35]} 52. Kxb8 {[%emt 0:00:13]} g2 {[%emt 0:00:05]} 53. a7 {[%emt 0:00:17]} g1=Q {[%emt 0:00:07]} (53... g1=R 54. a8=Q (54. a8=B Rb1 $15) 54... Ke7 55. Qa7+ Kd6 56. Nc8+ Kd5 57. Qxg1 f4 58. h4) 54. Kb7 {[%emt 0:00:05]} Qh1+ {[%emt 0:00:18]} 55. Ka6 {[%emt 0:02:13]} f4 {[%emt 0:00:36] Weighted Error Value: White=0.37/Black=0.17 (very precise) .  Loses game:     	White=1     	---        Missed win:     	---       	Black=1      Mistake:       	White=7     	Black=5      Inaccurate:     	White=1     	Black=2      OK:         	White=12    	Black=17     Best:        	White=6     	Black=4      Strong:       	---       	Black=2} (55... Qxh3 $2 {is the wrong capture.} 56. a8=Q+ (56. a8=R+ $2 Ke7 $19) 56... Ke7 57. Qd5 $16) 0-1

[Event "46th Barbera del Valles Open-A 2024"]
[Site "Barbera del Valles"]
[Date "2024.07.06"]
[Round "3.2"]
[White "Diaz Perez, Michel Alejandro"]
[Black "Fanninger, Leon"]
[Result "1-0"]
[ECO "B09"]
[WhiteElo "2486"]
[BlackElo "2186"]
[Annotator "RC"]
[PlyCount "95"]
[EventDate "2024.06.25"]
[EventType "swiss"]
[EventCountry "ESP"]
[SourceTitle "playchess.com"]
[Source "ChessBase"]
[SourceQuality "1"]
[TimeControl "5400+30"]

1. e4 {[%emt 0:00:34]} d6 {[%emt 0:00:20]} 2. d4 {[%emt 0:00:03]} Nf6 {[%emt 0:00:29]} 3. Nc3 {[%emt 0:00:04]} g6 {[%emt 0:00:25]} 4. f4 {[%emt 0:00:11]} Bg7 {[%emt 0:00:06]} 5. Nf3 {[%emt 0:00:06]} O-O {[%emt 0:00:06]} 6. Bd3 {[%emt 0:00:08]} Na6 {[%emt 0:13:52]} 7. O-O {[%emt 0:00:08]} c5 {[%emt 0:00:08]} 8. d5 {[%emt 0:00:06]} Bg4 {[%emt 0:00:05]} 9. h3 {[%emt 0:04:10]} Bxf3 {[%emt 0:00:07]} 10. Rxf3 {[%emt 0:00:20]} Rc8 {[%emt 0:10:58]} 11. Bc4 {[%emt 0:04:03]} Nd7 {[%emt 0:02:08]} 12. Qe2 {[%emt 0:06:17]} Nb4 {[%emt 0:03:27]} 13. Nd1 {[%emt 0:16:15]} Nb6 {[%emt 0:06:19]} 14. c3 {[%emt 0:00:39]} Nxc4 {[%emt 0:02:53]} 15. Qxc4 {[%emt 0:00:03]} Na6 {[%emt 0:03:35]} 16. Ne3 {[%emt 0:00:32]} Qa5 {[%emt 0:13:36]} 17. a4 {[%emt 0:03:59]} Nc7 {[%emt 0:00:14]} 18. f5 {[%emt 0:04:45]} Qa6 {[%emt 0:04:14]} 19. Qxa6 {[%emt 0:02:10]} Nxa6 {[%emt 0:00:29]} 20. Nc4 {[%emt 0:00:05]} Nb8 {[%emt 0:22:41]} 21. f6 {[%emt 0:13:43]} exf6 {[%emt 0:00:41]} 22. Nxd6 {[%emt 0:00:08]} Rc7 {[%emt 0:00:04]} 23. Bf4 {[%emt 0:02:23]} Re7 {[%emt 0:02:24]} 24. Re1 {[%emt 0:00:21]} Rd8 {[%emt 0:00:28]} 25. Rff1 {[%emt 0:05:10]} b6 {[%emt 0:02:34]} 26. Nb5 {[%emt 0:02:48]} Rb7 {[%emt 0:01:12]} 27. Bc7 {[%emt 0:02:06]} Rc8 {[%emt 0:03:13]} 28. Bg3 {[%emt 0:01:20]} Rd7 {[%emt 0:00:07]} 29. c4 {[%emt 0:02:13]} Na6 {[%emt 0:01:49]} 30. Bh4 {[%emt 0:03:51]} g5 {[%emt 0:00:11]} 31. Bg3 {[%emt 0:00:03]} Nb4 {[%emt 0:00:13]} 32. Re2 {[%emt 0:03:38]} h6 {[%emt 0:01:05]} 33. Nd6 {[%emt 0:01:16]} Rcd8 {[%emt 0:00:19]} 34. Nf5 {[%emt 0:00:01]} Re8 {[%emt 0:00:58]} 35. Be1 {[%emt 0:02:40]} Nd3 {[%emt 0:00:55]} 36. Bc3 {[%emt 0:00:02]} Ne5 {[%emt 0:00:12]} 37. b3 {[%emt 0:01:12]} a5 {[%emt 0:00:35]} 38. Ng3 {[%emt 0:03:16]} Kh7 {[%emt 0:01:01]} 39. Rf5 {[%emt 0:00:19]} Kg6 {[%emt 0:01:10]} 40. Nf1 {[%emt 0:04:01]} Rd6 {[%emt 0:01:59]} 41. Bxe5 {[%emt 0:01:37]} fxe5 {[%emt 0:01:35]} 42. g4 {[%emt 0:00:04]} Rf6 {[%emt 0:01:09]} 43. Ng3 {[%emt 0:00:10]} Rxf5 {[%emt 0:01:18]} 44. exf5+ {[%emt 0:00:48]} Kh7 {[%emt 0:00:01]} 45. Ne4 {[%emt 0:00:37]} f6 {[%emt 0:00:07]} 46. d6 {[%emt 0:01:07]} Rd8 {[%emt 0:00:13]} 47. Rd2 {[%emt 0:00:01]} Rd7 {[%emt 0:00:17]} 48. b4 {[%emt 0:01:05]} 1-0

[Event "46th Barbera del Valles Open-A 2024"]
[Site "Barbera del Valles"]
[Date "2024.07.06"]
[Round "3.3"]
[White "Bakshi, Rutuja"]
[Black "Solodovnichenko, Yuri"]
[Result "1-0"]
[ECO "A13"]
[WhiteElo "2058"]
[BlackElo "2481"]
[Annotator "TA"]
[PlyCount "123"]
[EventDate "2024.06.25"]
[EventType "swiss"]
[EventCountry "ESP"]
[SourceTitle "playchess.com"]
[Source "ChessBase"]
[SourceQuality "1"]
[TimeControl "5400+30"]

{[%evp 42,123,-27,-28,-23,-38,-32,-49,-48,-52,-46,-111,-102,-122,-95,-164,-131,-203,-115,-109,-51,-47,-45,-42,-33,-43,-33,-41,-30,-38,-14,-40,-37,-39,-40,-93,-75,-89,0,0,0,0,41,0,0,0,0,0,0,0,0,0,0,0,0,-43,-35,-52,-18,-21,-14,-27,-21,-30,0,-9,-8,-7,0,0,1355,1341,6528,1773,2270,1875,2761,2802,29982,29983,29983,29984,29998,29999]} 1. c4 {[%emt 0:00:03]} e6 {[%emt 0:02:03]} 2. g3 {[%emt 0:01:25]} d5 {[%emt 0:02:19]} 3. Bg2 {[%emt 0:00:15]} Nf6 {[%emt 0:03:43]} 4. Nf3 {[%emt 0:00:28]} dxc4 {[%emt 0:05:04]} 5. Qa4+ {[%emt 0:01:33]} c6 {[%emt 0:01:29]} 6. Qxc4 {[%emt 0:00:13]} b5 {[%emt 0:00:06]} 7. Qc2 {[%emt 0:00:12]} Bb7 {[%emt 0:00:05]} 8. b3 {[%emt 0:03:36] A13: English Opening: 1...e6.} Nbd7 {[%emt 0:00:21]} 9. Bb2 {[%emt 0:00:33]} Be7 {[%emt 0:01:42]} 10. Nc3 {[%emt 0:03:29]} Rc8 {[%emt 0:04:22]} 11. Rc1 {[%emt 0:04:37]} Qb6 {[%emt 0:05:43]} 12. O-O {[%emt 0:05:59]} c5 {[%emt 0:01:47]} 13. d3 {[%emt 0:07:34]} O-O {[%emt 0:00:22]} 14. Rfd1 {[%emt 0:01:27]} Rc7 $146 {[%emt 0:03:23]} ({Predecessor:} 14... Rfd8 15. a4 a6 16. Ra1 c4 17. bxc4 bxc4 18. d4 Bb4 19. e3 h6 20. Ba3 Bxc3 21. Qxc3 {0-1 Cornes,C (1888)-Truelove,C (2031) ENG NC/TRIP01F email 2016}) 15. e4 {[%emt 0:07:00]} Rfc8 {[%emt 0:02:11]} 16. Qe2 {[%emt 0:02:52]} a6 {[%emt 0:16:06]} 17. h3 {[%emt 0:02:12]} h6 {[%emt 0:01:58]} 18. Kh2 {[%emt 0:04:24]} Bd6 {[%emt 0:02:57]} 19. Nb1 {[%emt 0:03:50]} e5 {[%emt 0:01:43]} 20. Nbd2 {[%emt 0:01:37]} Re8 {[%emt 0:03:17]} 21. Nf1 {[%emt 0:06:49]} Nb8 {[%emt 0:00:12]} 22. Ne3 {[%emt 0:01:13]} Nc6 {[%emt 0:00:04]} 23. Qd2 {[%emt 0:04:20]} Rd7 {[%emt 0:03:00]} 24. Ng1 {[%emt 0:08:03]} Bf8 {[%emt 0:12:10]} 25. Bc3 {[%emt 0:04:42]} Qd8 {[%emt 0:08:27]} 26. a3 {[%emt 0:04:37]} (26. Qe2 $15) 26... h5 $17 {[%emt 0:01:00]} 27. Ne2 {[%emt 0:06:19]} h4 {[%emt 0:01:02]} 28. b4 {[%emt 0:05:01]} (28. g4 $17) 28... hxg3+ {[%emt 0:04:19]} 29. fxg3 {[%emt 0:01:04]} (29. Nxg3 $17 {is a better defense.} cxb4 30. axb4) 29... Nd4 {[%emt 0:01:12]} (29... cxb4 $19 30. axb4 a5 31. bxa5 b4) 30. Qb2 $17 {[%emt 0:00:48]} g6 {[%emt 0:10:17]} ({Black should play} 30... c4 $17 {And now ...cxd3 would win.} 31. dxc4 Nxe4 (31... Bxe4 32. Nxd4 Bxg2 33. Ne6 $15) 32. cxb5 Nf2 (32... Nxb5 33. Bxe5 Nf2 34. Rxd7 $11) (32... axb5 33. Bxe4 Bxe4 34. Nxd4 $17) 33. Bxb7 (33. Nxd4 $2 Nxd1 34. Rxd1 Bxg2 $19) 33... Nxd1 (33... Rxb7 34. bxa6 Rd7 35. a7 $17) 34. Rxd1 Rxb7 35. bxa6 Rd7 36. Bxd4 (36. Nxd4 $2 exd4 37. Bxd4 Rxe3 $19) 36... exd4) 31. bxc5 $15 {[%emt 0:03:43]} Nxe2 {[%emt 0:01:19]} 32. Qxe2 {[%emt 0:00:06]} Bxc5 {[%emt 0:00:06]} 33. Nc2 {[%emt 0:00:53]} Bf8 {[%emt 0:00:50]} 34. Rb1 {[%emt 0:01:32]} Qc7 {[%emt 0:01:14]} 35. Bb2 {[%emt 0:00:09]} Bg7 {[%emt 0:01:14]} 36. Nb4 {[%emt 0:00:50]} a5 {[%emt 0:00:21]} 37. Nc2 {[%emt 0:00:59]} Ba6 {[%emt 0:00:43]} 38. Na1 {[%emt 0:01:47]} (38. Ne1 $15) 38... Red8 {[%emt 0:00:36]} 39. Rbc1 {[%emt 0:00:29]} Qb8 {[%emt 0:00:33]} (39... Qb6 $17 {...b4 would now be deadly.} 40. Nb3 Bf8) 40. Nb3 $11 {[%emt 0:00:06]} b4 {[%emt 0:00:20]} 41. Nc5 {[%emt 0:00:14]} Rd6 {[%emt 0:00:26]} 42. Nxa6 {[%emt 0:01:37]} (42. Bxe5 $5 Ng4+ $8 43. Qxg4 Bxe5 44. Nxa6 Rxa6 45. d4 $14) 42... Rxa6 {[%emt 0:00:02]} 43. d4 {[%emt 0:00:00]} bxa3 {[%emt 0:00:43]} 44. Bxa3 {[%emt 0:00:12]} Rb6 {[%emt 0:00:21]} 45. d5 {[%emt 0:01:01]} Bf8 {[%emt 0:00:10]} 46. Bxf8 {[%emt 0:00:42]} Kxf8 {[%emt 0:00:19]} 47. Qd2 {[%emt 0:01:00]} a4 {[%emt 0:00:41]} 48. Rf1 {[%emt 0:00:32]} Kg7 {[%emt 0:00:14]} 49. Qf2 {[%emt 0:01:02]} Rdd6 {[%emt 0:00:22]} 50. g4 {[%emt 0:00:19]} Rb2 {[%emt 0:00:25]} 51. Qf3 {[%emt 0:00:15]} Rb3 {[%emt 0:00:40]} 52. Qf2 {[%emt 0:00:51]} Qb6 {[%emt 0:00:07]} (52... Qb7 $5) 53. Qh4 {[%emt 0:01:31]} Qd8 {[%emt 0:01:14]} 54. Qf2 {[%emt 0:00:09]} Qb6 {[%emt 0:01:08]} 55. Qh4 {[%emt 0:00:02]} Rd8 $2 {[%emt 0:00:21][%mdl 8192]} (55... Qd8 $11) 56. Rc6 $18 {[%emt 0:00:14]} Nxg4+ {[%emt 0:00:38]} 57. Qxg4 {[%emt 0:01:20]} (57. hxg4 $142 Qxc6 58. dxc6 (58. Rxf7+ Kxf7 59. Qh7+ Kf6 $18)) 57... Qb7 {[%emt 0:00:01]} 58. Qg5 {[%emt 0:00:16]} Re8 {[%emt 0:00:26]} 59. Rff6 {[%emt 0:00:40]} Qe7 {[%emt 0:01:31]} 60. Rxg6+ {[%emt 0:00:24]} fxg6 {[%emt 0:00:01]} 61. Rxg6+ {[%emt 0:00:10]} Kf8 {[%emt 0:00:04]} 62. Rg8+ {[%emt 0:00:09]} 1-0

[Event "46th Barbera del Valles Open-A 2024"]
[Site "Barbera del Valles"]
[Date "2024.07.06"]
[Round "3.4"]
[White "Reyan"]
[Black "Narciso Dublan, Marc"]
[Result "1-0"]
[ECO "B07"]
[WhiteElo "2022"]
[BlackElo "2432"]
[Annotator "TA"]
[PlyCount "93"]
[EventDate "2024.06.25"]
[EventType "swiss"]
[EventCountry "ESP"]
[SourceTitle "playchess.com"]
[Source "ChessBase"]
[SourceQuality "1"]
[TimeControl "5400+30"]

{[%evp 15,93,-11,0,-12,-16,-10,0,-51,-50,-33,-35,-24,-35,-39,-25,-126,-71,-112,-74,-130,-33,-39,-27,-47,-19,-27,-18,-31,-40,-32,85,50,102,84,204,61,58,62,181,67,59,0,354,277,1626,865,1688,1477,1058,1051,965,868,874,865,862,851,842,837,822,821,778,698,5551,5614,29967,834,548,0,29975,554,485,20,29995,29996,29996,29997,29997,29998,29998,29999]} 1. e4 {[%emt 0:00:04]} d6 {[%emt 0:00:41]} 2. d4 {[%emt 0:00:16]} Nf6 {[%emt 0:00:19]} 3. Nc3 {[%emt 0:00:11]} e5 {[%emt 0:00:23]} 4. Nge2 {[%emt 0:02:16]} Be7 {[%emt 0:00:22]} 5. g3 {[%emt 0:01:25]} O-O {[%emt 0:00:22]} 6. Bg2 {[%emt 0:00:06]} c6 {[%emt 0:00:41]} 7. O-O {[%emt 0:00:23]} b5 {[%emt 0:00:46]} 8. a3 {[%emt 0:00:37]} Nbd7 {[%emt 0:00:59][%cal Bb8d7,Bd7b6,Bb6c4][%mdl 32]} 9. h3 {[%emt 0:00:45]} a5 {[%emt 0:00:55]} 10. g4 {[%emt 0:02:16]} Ba6 {[%emt 0:00:49]} 11. b4 {[%emt 0:12:58]} (11. Re1 $11) 11... Bb7 {[%emt 0:04:57] Hoping for ...axb4.} 12. Rb1 {[%emt 0:02:39]} axb4 {[%emt 0:00:26]} 13. axb4 {[%emt 0:00:04]} Nb6 {[%emt 0:08:09]} 14. f4 {[%emt 0:02:26]} Nc4 {[%emt 0:02:15]} 15. f5 {[%emt 0:03:07]} (15. Ng3 $11) 15... Nd7 {[%emt 0:07:40]} (15... exd4 $142 16. Nxd4 Nd7) 16. Kh1 {[%emt 0:10:45]} Bg5 {[%emt 0:03:39]} 17. dxe5 {[%emt 0:04:20]} (17. d5 $142) 17... Bxc1 {[%emt 0:10:25]} (17... Ncxe5 18. Bxg5 Qxg5 19. Qxd6 $14) (17... Ndxe5 $17 18. Qe1 Bh4) 18. Qxc1 $15 {[%emt 0:01:22][%cal Of5f6]} dxe5 {[%emt 0:00:19]} 19. g5 {[%emt 0:01:09]} Qb6 {[%emt 0:06:40]} 20. Rf3 {[%emt 0:03:50]} Rad8 {[%emt 0:08:44]} 21. f6 {[%emt 0:03:14]} g6 {[%emt 0:01:38]} 22. Qe1 {[%emt 0:01:58]} h5 {[%emt 0:09:35]} (22... Rfe8 $15) 23. Ng3 $1 $16 {[%emt 0:06:13][%cal Og3h5]} Kh7 {[%emt 0:31:16]} (23... Nb8 $1 $14) 24. Rd3 {[%emt 0:08:16][%cal Og3f5]} c5 {[%emt 0:00:00]} (24... Na3 $16 {keeps fighting.}) 25. bxc5 {[%emt 0:01:32]} ({Only move:} 25. Nxh5 $1 $18 cxb4 (25... gxh5 $2 26. Qh4 $18) 26. Rxb4) 25... Nxc5 $14 {[%emt 0:00:00]} 26. Rxb5 {[%emt 0:02:06]} Qc6 {[%emt 0:00:00] [#]} (26... Nxd3 27. cxd3 Qe3 28. Qxe3 Nxe3 29. Rxb7 $11) (26... Qc7 $1 $14 27. Rxd8 Rxd8) 27. Rxd8 {[%emt 0:06:54]} (27. Nxh5 $1 $18 Nxd3 (27... gxh5 $2 28. Qh4 $18) 28. cxd3) 27... Rxd8 {[%emt 0:00:00]} 28. Nxh5 {[%emt 0:05:36][%cal Oe1h4] Threatens to win with Qh4!} gxh5 $2 {[%emt 0:00:00][%mdl 8192]} (28... Nd6 $1 $11 {and Black stays safe.} 29. Qh4 Nf5 (29... Nxb5 30. Nf4+ Kg8 31. Qh6)) 29. Qe2 {[%emt 0:02:43]} Ne6 $2 {[%emt 0:00:00]} (29... Kg6) 30. Qxh5+ $18 {[%emt 0:07:07]} Kg8 {[%emt 0:00:00]} 31. g6 {[%emt 0:04:15]} fxg6 {[%emt 0:00:19]} 32. Qxg6+ {[%emt 0:00:12]} Kf8 {[%emt 0:00:15]} 33. Qh6+ {[%emt 0:00:58]} Ke8 {[%emt 0:00:41]} 34. Qh5+ {[%emt 0:01:03]} Kd7 {[%emt 0:01:02] [#]} 35. Rxb7+ $1 {[%emt 0:02:55][%mdl 512]} Qxb7 {[%emt 0:00:16]} 36. Qf7+ {[%emt 0:00:02]} Kc6 {[%emt 0:00:13]} 37. Qxe6+ {[%emt 0:00:02]} Kc5 {[%emt 0:00:14]} 38. Bf1 {[%emt 0:01:39]} Ne3 {[%emt 0:03:56]} 39. Qxe5+ {[%emt 0:00:39]} Kb4 {[%emt 0:00:26]} 40. Na2+ {[%emt 0:01:16]} (40. Nd5+ $142 Kc5 41. Nxe3+ Kc6 42. Qe6+ Kc5 43. f7 Qb8 44. Nc4 Kb5 45. Qe7 (45. Ne5+ Ka4 46. Qa6+ Kb4 47. Nc6+ Kc3 48. Nxb8 Rxb8 49. Qa5+ Kd4 50. Qa7+ Kc3)) 40... Ka4 {[%emt 0:00:05]} 41. Nc3+ {[%emt 0:00:35]} (41. Bb5+ $18 Ka3 42. Qe7+ (42. Nc3 Qc8 $11) 42... Qxe7 43. fxe7 Rd1+ 44. Kh2 Rd2+ 45. Kg3 Rxc2 46. e8=Q (46. e8=N Rxa2 47. Bd3 Kb4 $17) 46... Rxa2 47. Qf8+ Kb3 48. Qf3 Rg2+ 49. Kf4) 41... Kb4 {[%emt 0:00:02]} 42. Bd3 {[%emt 0:00:43]} (42. Nd5+ $142 Kc5 43. Nxe3+ Kc6 44. Qe6+ Kc7 45. f7 Kb8 46. Qf6 Qd7 47. Qb6+ (47. f8=B Qc8 $18) 47... Ka8 48. Bg2) 42... Qc8 {[%emt 0:00:56] [#]} 43. Kh2 {[%emt 0:00:30]} ({White must play} 43. Na2+ $1 $18 Ka3 44. Qa5+ Kb2 45. Qb6+ Ka1 46. Qxe3 Kxa2 47. Qa7+ Kb2 48. Qb6+ Kc1 49. Kg2 (49. Qe3+ Kb2 $18)) 43... Ka3 $2 {[%emt 0:01:03][%mdl 8192] Black cannot hold the game after this.} (43... Qxc3 $11 44. Qe7+ Ka4 45. Qa7+ (45. Qxd8 Qe5+ 46. Kh1 Qa1+ 47. Kh2 Qe5+ 48. Kh1 Qa1+ 49. Kh2 Qe5+ $11) 45... Qa5 46. Qxe3 Qe5+ 47. Qg3 Qxf6) 44. Qa5+ {[%emt 0:00:28] White mates.} Kb2 {[%emt 0:00:01][%cal Ba3b2,Bb2c1,Bc1d1][%mdl 32]} 45. Qb4+ {[%emt 0:00:04]} Kc1 {[%emt 0:00:00]} 46. Na2+ {[%emt 0:00:09]} Kd1 {[%emt 0:00:00]} 47. Qb1+ {[%emt 0:00:06] Weighted Error Value: White=0.81/Black=0.84.  Loses game:     	---       	Black=2      Mistake:       	White=6     	Black=7      Inaccurate:     	White=1     	Black=3      OK:         	White=5     	Black=3      Best:        	White=1     	Black=1      Strong:       	White=1     	---} 1-0